bitfinex-derivatives/quotes_SOLF0:USTF0_20241024
["timestamp","ask_amount","ask_price","bid_price","bid_amount"]
[1729779290031,2.86,174.98,174.94,2.8605]
[1729779290430,13.71797869,175.01,174.91,1.196]
[1729779290431,13.71797869,175.01,174.92,4.7]
[1729779290727,13.71797869,175.01,174.92,5.79981]
[1729779291123,13.71797869,175.03,174.93,13.71797869]
[1729779291323,13.71797869,175.05,174.95,13.71797869]
[1729779291535,13.71797869,175.05,174.96,4.7]
[1729779291729,2.859,175.04,174.99,2.8596]
[1729779292129,2.859,175.04,174.96,5.79981]
[1729779292833,2.859,175.04,174.99,2.8595]
[1729779293125,2.859,175.04,174.96,5.79981]
[1729779293332,2.8591,175.03,174.96,5.79981]
[1729779293532,13.71797869,175.05,174.98,2.8597]
[1729779293927,2.8592,175.03,174.98,2.8597]
[1729779294130,13.71797869,175.03,174.98,2.8597]
[1729779294535,13.71797869,175.03,174.96,4.7]
[1729779294735,2.8593,175.02,174.99,2.8597]
[1729779294930,13.71797869,175.03,174.96,4.7]
[1729779295123,2.8592,175.02,174.98,2.8598]
[1729779295328,2.8592,175.02,174.96,4.7]
[1729779295937,13.71797869,175.05,174.99,2.8597]
[1729779296234,2.859,175.04,174.99,2.8597]
[1729779296730,1.1911,175.09,175.0,4.7]
[1729779296935,1.1911,175.09,175.01,13.71797869]
[1729779297236,2.8578,175.11,175.07,2.8583]
[1729779298234,18.41797869,175.12,175.02,1.205]
[1729779298438,2.8583,175.08,175.04,2.8589]
[1729779300231,2.8583,175.08,175.02,4.7]
[1729779300427,2.8578,175.11,175.07,2.8582]
[1729779300831,2.8579,175.1,175.07,2.8582]
[1729779301136,14.98967869,175.12,175.05,2.8587]
[1729779301331,14.98967869,175.12,175.02,18.41797869]
[1729779301738,2.858,175.1,175.06,2.8584]
[1729779303034,2.858,175.1,175.04,1.09974]
[1729779303335,2.858,175.1,175.07,2.8584]
[1729779304937,13.71797869,175.14,175.05,13.71797869]
[1729779305144,13.71797869,175.14,175.05,14.81771869]
[1729779305339,2.8576,175.12,175.09,2.858]
[1729779306441,2.8581,175.09,175.06,2.8585]
[1729779307134,13.71797869,175.12,175.03,1.2116]
[1729779307336,13.71797869,175.1,175.01,5.9606]
[1729779307830,2.8581,175.09,175.06,2.8585]
[1729779308038,4.7,175.11,175.01,19.67857869]
[1729779308539,4.7,175.11,175.01,20.77825869]
[1729779308736,1.1678,175.13,175.03,13.71797869]
[1729779309236,1.1678,175.13,174.98,2.83064351]
[1729779309237,2.8579,175.1,174.98,2.83064351]
[1729779309436,13.71797869,175.05,174.98,1.09968]
[1729779309745,13.71797869,175.05,175.02,2.8591]
[1729779309941,13.71797869,175.05,174.98,1.09968]
[1729779310140,13.71797869,175.05,174.98,1.14285]
[1729779310343,16.57677869,175.05,175.02,2.8592]
[1729779310735,2.8588,175.05,175.02,2.8592]
[1729779310937,2.8586,175.06,175.02,2.8592]
[1729779311736,13.71797869,175.06,175.0,2.8595]
[1729779311942,13.71797869,175.06,174.97,4.7]
[1729779312442,2.8587,175.05,174.97,5.79981]
[1729779312637,1.1678,175.13,175.02,13.71797869]
[1729779312840,1.1678,175.13,175.07,2.8583]
[1729779312841,2.8578,175.11,175.07,2.8583]
[1729779313031,19.58577869,175.13,175.07,2.8583]
[1729779313635,13.71797869,175.11,175.03,7.01191]
[1729779313842,13.71797869,175.11,175.06,2.8584]
[1729779314245,2.858,175.1,175.07,2.8584]
[1729779315246,2.8577,175.12,175.08,2.8581]
[1729779315444,19.58577869,175.13,175.08,2.8581]
[1729779315641,19.58577869,175.13,175.03,8.24571]
[1729779315847,2.858,175.1,175.06,2.8584]
[1729779316237,2.858,175.1,175.03,8.24571]
[1729779316439,13.71797869,175.09,175.03,1.2121]
[1729779316643,13.71797869,175.09,175.01,1.09978]
[1729779316844,13.71797869,175.09,174.97,1.174]
[1729779316845,18.39797869,175.09,175.02,2.8591]
[1729779317042,2.8585,175.06,175.02,2.8591]
[1729779318040,18.39797869,175.09,175.0,1.09977]
[1729779318235,2.8585,175.07,175.04,2.8588]
[1729779318643,4.03233246,175.13,175.0,1.09977]
[1729779318644,2.8578,175.11,175.08,2.8582]
[1729779318847,2.8578,175.11,175.03,18.39797869]
[1729779318848,5.8478,175.13,175.04,1.2807]
[1729779319147,5.8478,175.13,175.04,2.38047]
[1729779319342,1.1677,175.14,175.06,13.71797869]
[1729779319546,13.71797869,175.18,175.08,13.71797869]
[1729779319848,18.39797869,175.18,175.08,13.71797869]
[1729779320243,18.39797869,175.18,175.08,14.81774869]
[1729779320445,2.8572,175.15,175.11,2.8577]
[1729779320840,18.39797869,175.18,175.08,1.09977]
[1729779321038,18.39797869,175.18,175.07,4.68]
[1729779321039,13.71797869,175.16,175.07,5.77977]
[1729779321645,13.71797869,175.16,175.07,1.09977]
[1729779321839,13.71797869,175.16,175.07,5.77977]
[1729779322046,4.68,175.17,175.07,5.77977]
[1729779322743,2.8572,175.15,175.11,2.8576]
[1729779322951,2.4824,175.2,175.08,13.71797869]
[1729779323141,2.4824,175.2,175.1,13.71797869]
[1729779323142,7.1624,175.2,175.1,13.71797869]
[1729779323336,2.8567,175.18,175.14,2.8571]
[1729779323543,2.8567,175.18,175.11,4.68]
[1729779323544,61.7,175.31,175.13,13.71797869]
[1729779323739,1.2369,175.25,175.15,13.71797869]
[1729779323939,2.8556,175.24,175.15,18.39797869]
[1729779324141,2.8556,175.24,175.15,19.49774869]
[1729779324346,4.68,175.25,175.18,13.71797869]
[1729779324548,61.7,175.31,175.18,13.71797869]
[1729779324549,18.39797869,175.29,175.18,13.71797869]
[1729779324742,18.39797869,175.29,175.2,13.71797869]
[1729779324944,4.68,175.29,175.2,13.71797869]
[1729779325145,13.71797869,175.29,175.21,1.2266]
[1729779326344,13.71797869,175.29,175.21,2.32628]
[1729779326544,13.71797869,175.29,175.21,1.2266]
[1729779327444,2.8554,175.26,175.21,1.2266]
[1729779328249,2.8554,175.26,175.23,2.8557]
[1729779328440,2.8554,175.26,175.21,1.2266]
[1729779328845,2.513,175.3,175.21,1.2266]
[1729779329154,2.513,175.3,175.21,2.36808]
[1729779330249,2.8549,175.29,175.25,2.8554]
[1729779330449,2.513,175.3,175.25,2.8554]
[1729779331254,2.855,175.28,175.23,4.66]
[1729779331455,2.513,175.3,175.24,2.8556]
[1729779331856,2.8551,175.28,175.24,2.8556]
[1729779332548,13.71797869,175.31,175.23,4.66]
[1729779332751,20.84657869,175.34,175.23,4.66]
[1729779332961,23.66505806,175.34,175.23,4.66]
[1729779333162,23.70067869,175.34,175.25,13.71797869]
[1729779333461,2.4686,175.34,175.25,13.71797869]
[1729779333856,2.8543,175.33,175.25,13.71797869]
[1729779334055,61.68,175.43,175.27,13.71797869]
[1729779334056,2.87186831,175.37,175.27,13.71797869]
[1729779334263,2.854,175.34,175.31,2.8544]
[1729779334656,18.37797869,175.38,175.28,4.66]
[1729779334856,13.71797869,175.38,175.28,4.66]
[1729779335054,18.37797869,175.38,175.28,4.66]
[1729779335655,2.8541,175.34,175.28,4.66]
[1729779335855,18.37797869,175.38,175.28,4.66]
[1729779336056,18.37797869,175.4,175.3,13.71797869]
[1729779336256,13.71797869,175.4,175.3,13.71797869]
[1729779336658,13.71797869,175.4,175.3,14.85945869]
[1729779337059,16.60917234,175.4,175.3,14.81775869]
[1729779337264,13.71797869,175.38,175.3,1.09978]
[1729779337761,13.71797869,175.4,175.3,18.37797869]
[1729779337967,7.1703,175.42,175.32,13.71797869]
[1729779338164,2.8532,175.39,175.34,2.8539]
[1729779338367,7.1703,175.42,175.34,2.8539]
[1729779338871,7.1703,175.42,175.32,14.81775869]
[1729779339259,9.99377168,175.42,175.32,14.81775869]
[1729779339459,2.8533,175.39,175.35,2.8537]
[1729779339661,13.71797869,175.45,175.34,18.37797869]
[1729779339859,4.66,175.46,175.36,13.71797869]
[1729779340065,4.66,175.46,175.37,5.9134]
[1729779340270,13.71797869,175.47,175.4,2.8529]
[1729779340762,13.71797869,175.47,175.38,1.09978]
[1729779341070,2.4867,175.49,175.41,13.71797869]
[1729779341270,2.8517,175.48,175.44,2.8522]
[1729779342069,2.8517,175.48,175.44,7.5122]
[1729779342567,2.8517,175.48,175.45,2.8522]
[1729779343263,7.47456776,175.53,175.44,4.66]
[1729779343469,7.47456776,175.53,175.46,2.852]
[1729779343661,2.8515,175.49,175.46,2.852]
[1729779344061,2.8515,175.49,175.45,2.8521]
[1729779344262,7.47456776,175.53,175.42,1.10009]
[1729779344468,2.852,175.47,175.44,4.66]
[1729779344666,7.47456776,175.53,175.43,4.66]
[1729779344869,2.8519,175.47,175.43,4.66]
[1729779345472,2.8517,175.48,175.44,2.8523]
[1729779345672,7.47456776,175.53,175.44,2.8523]
[1729779346367,2.8513,175.51,175.44,2.8523]
[1729779346572,7.47456776,175.53,175.44,2.8523]
[1729779347273,7.47456776,175.53,175.41,4.64]
[1729779347274,21.89886968,175.51,175.41,4.64]
[1729779347470,21.89886968,175.48,175.37,1.2534]
[1729779347673,21.89886968,175.45,175.37,1.2534]
[1729779347873,7.0088,175.47,175.4,2.853]
[1729779348370,2.8525,175.44,175.4,2.853]
[1729779348578,2.8525,175.44,175.39,4.64]
[1729779348869,7.0088,175.47,175.41,2.8528]
[1729779349076,131.9134293,176.15,175.39,5.7399]
[1729779349077,4.64,175.5,175.39,5.7399]
[1729779349474,2.84491844,175.53,175.4,21.89886968]
[1729779349665,21.89886968,175.54,175.4,21.89886968]
[1729779349666,2.8516,175.49,175.4,21.89886968]
[1729779349868,2.84834227,175.53,175.4,1.0999]
[1729779350081,26.53886968,175.54,175.4,1.0999]
[1729779350378,21.89886968,175.48,175.41,2.8527]
[1729779350979,21.89886968,175.48,175.4,1.0999]
[1729779351172,21.89886968,175.45,175.38,4.64]
[1729779351372,2.8525,175.43,175.38,7.4932]
[1729779351567,21.89886968,175.45,175.37,1.2534]
[1729779351771,21.89886968,175.42,175.37,5.8934]
[1729779351978,21.89886968,175.42,175.37,1.2534]
[1729779352172,2.8532,175.39,175.37,1.2534]
[1729779352373,21.89886968,175.42,175.36,4.64]
[1729779352576,2.8531,175.4,175.35,2.8537]
[1729779352777,21.89886968,175.42,175.35,2.8537]
[1729779353078,21.89886968,175.42,175.35,3.95357]
[1729779353276,2.8533,175.39,175.35,2.8537]
[1729779353481,21.89886968,175.42,175.33,1.2311]
[1729779353785,21.89886968,175.39,175.33,5.8711]
[1729779354173,21.89886968,175.39,175.33,4.0851]
[1729779354174,2.8538,175.36,175.33,4.0851]
[1729779354373,21.89886968,175.39,175.33,4.0851]
[1729779354374,21.89886968,175.39,175.33,1.2311]
[1729779354774,21.89886968,175.39,175.31,4.64]
[1729779354980,21.89886968,175.37,175.31,4.64]
[1729779355376,2.8542,175.33,175.31,4.64]
[1729779355781,21.89886968,175.34,175.28,1.208]
[1729779356083,2.8546,175.3,175.28,1.208]
[1729779356479,2.8544,175.32,175.28,4.0629]
[1729779356780,21.89886968,175.34,175.28,4.0629]
[1729779358176,21.89886968,175.34,175.29,2.8548]
[1729779359081,2.8544,175.32,175.29,2.8548]
[1729779360175,2.8547,175.3,175.28,1.208]
[1729779360882,21.89886968,175.34,175.26,1.0999]
[1729779361183,21.89886968,175.31,175.24,7.4955]
[1729779361382,4.64,175.36,175.24,5.78151]
[1729779361383,21.89886968,175.34,175.24,5.78151]
[1729779361583,2.8544,175.32,175.28,2.8549]
[1729779361881,21.89886968,175.36,175.28,1.14151]
[1729779362082,21.89886968,175.36,175.28,5.78151]
[1729779362272,18.34973585,175.37,175.28,5.78151]
[1729779362476,13.70973585,175.37,175.29,1.1799]
[1729779362676,2.8538,175.36,175.32,2.8542]
[1729779362874,2.8538,175.36,175.32,3.99571]
[1729779363286,2.8538,175.36,175.32,3.95416]
[1729779364684,13.70973585,175.37,175.29,1.1799]
[1729779364886,13.70973585,175.35,175.3,2.8545]
[1729779365082,13.70973585,175.35,175.29,5.8199]
[1729779365277,13.70973585,175.33,175.29,4.64]
[1729779365585,13.70973585,175.33,175.27,1.14135]
[1729779365884,2.8547,175.3,175.27,2.8551]
[1729779366086,13.70973585,175.33,175.27,2.8551]
[1729779366382,13.70973585,175.33,175.25,1.0999]
[1729779366584,13.70973585,175.33,175.25,4.64]
[1729779366886,2.8549,175.29,175.25,8.5952]
[1729779367082,2.8549,175.29,175.25,5.7399]
[1729779367689,13.70973585,175.3,175.25,5.7399]
[1729779367690,2.8551,175.28,175.25,5.7399]
[1729779367886,13.70973585,175.3,175.24,7.4955]
[1729779368187,2.8552,175.27,175.24,4.64]
[1729779368578,13.70973585,175.3,175.24,4.64]
[1729779368985,2.8551,175.28,175.25,2.8554]
[1729779369186,13.70973585,175.3,175.24,4.64]
[1729779369487,2.8549,175.29,175.24,7.4956]
[1729779369688,13.70973585,175.3,175.24,7.4956]
[1729779370188,2.8551,175.28,175.24,7.4956]
[1729779370491,16.56483585,175.28,175.24,7.4956]
[1729779371188,2.8555,175.25,175.22,4.64]
[1729779371393,13.70973585,175.28,175.22,4.64]
[1729779371693,2.8552,175.27,175.23,2.8557]
[1729779371893,13.70973585,175.28,175.23,2.8557]
[1729779372191,2.8555,175.25,175.22,8.5958]
[1729779372388,13.70973585,175.28,175.22,1.0999]
[1729779372590,13.70973585,175.28,175.18,13.70973585]
[1729779372591,13.70973585,175.28,175.2,4.64]
[1729779372789,2.8559,175.23,175.19,7.4963]
[1729779373092,13.70973585,175.26,175.19,4.64]
[1729779373296,2.8559,175.23,175.19,7.4964]
[1729779374195,2.856,175.22,175.19,7.4964]
[1729779374387,13.70973585,175.24,175.17,2.31193]
[1729779374592,2.4902,175.31,175.16,5.73993]
[1729779374593,13.70973585,175.22,175.16,5.73993]
[1729779374887,13.70973585,175.17,175.12,1.09996]
[1729779375093,13.70973585,175.17,175.1,4.64]
[1729779375289,2.8574,175.14,175.1,4.64]
[1729779375490,13.70973585,175.12,175.09,1.09996]
[1729779375686,13.70973585,175.1,175.03,4.64]
[1729779375997,16.09073585,175.13,175.06,2.8585]
[1729779376288,24.33196527,175.13,175.06,2.8585]
[1729779376587,2.8577,175.11,175.06,2.8585]
[1729779377787,24.33196527,175.13,175.06,2.8585]
[1729779377983,2.8577,175.12,175.06,2.8585]
[1729779378592,21.95096527,175.16,175.07,4.64]
[1729779378889,21.95096527,175.19,175.07,4.64]
[1729779379092,21.95096527,175.19,175.08,1.267]
[1729779379093,26.59096527,175.19,175.08,1.267]
[1729779379284,4.64,175.19,175.08,2.4382]
[1729779379484,23.12716527,175.22,175.08,2.4382]
[1729779379688,23.12716527,175.22,175.1,21.95096527]
[1729779379689,1.1762,175.22,175.1,21.95096527]
[1729779379986,1.1762,175.22,175.11,4.64]
[1729779380193,2.8562,175.21,175.15,2.857]
[1729779380393,1.1762,175.22,175.15,2.857]
[1729779380588,2.857,175.16,175.11,8.59753]
[1729779380990,23.12716527,175.22,175.12,18.50984586]
[1729779381203,23.12716527,175.22,175.13,18.50984586]
[1729779381496,23.12716527,175.22,175.14,18.50984586]
[1729779381497,21.95096527,175.19,175.14,18.50984586]
[1729779381691,21.95096527,175.19,175.15,18.50984586]
[1729779381891,21.95096527,175.19,175.16,18.50984586]
[1729779382092,2.8566,175.18,175.17,14.22389473]
[1729779382494,21.95096527,175.19,175.17,14.22389473]
[1729779382691,23.12716527,175.22,175.18,14.22389473]
[1729779382889,23.12716527,175.22,175.19,14.22389473]
[1729779383093,23.12716527,175.22,175.11,4.64]
[1729779383094,2.8561,175.21,175.2,14.22389473]
[1729779383292,1.1762,175.22,175.2,14.22389473]
[1729779383498,1.1762,175.22,175.21,14.22389473]
[1729779383691,1.1762,175.22,175.21,4.22389473]
[1729779384105,4.0321,175.22,175.21,4.22389473]
[1729779384301,4.64,175.26,175.21,4.22389473]
[1729779384596,4.64,175.26,175.15,5.73984]
[1729779384798,2.8559,175.23,175.16,4.28509799]
[1729779384991,26.59096527,175.27,175.17,4.28509799]
[1729779385197,2.8556,175.25,175.21,2.856]
[1729779385390,2.8556,175.25,175.22,4.28509799]
[1729779385590,2.4018,175.29,175.18,4.64]
[1729779385790,2.4018,175.29,175.19,4.28480922]
[1729779385997,2.4018,175.29,175.2,4.28480922]
[1729779386303,2.4018,175.29,175.25,2.8553]
[1729779386491,2.4018,175.29,175.2,1.09984]
[1729779386812,2.8556,175.25,175.2,2.8562]
[1729779386992,21.95096527,175.27,175.18,5.8094]
[1729779387191,26.59096527,175.27,175.18,5.8094]
[1729779387397,26.59096527,175.27,175.19,2.8564]
[1729779387793,26.59096527,175.27,175.18,5.8094]
[1729779388003,26.59096527,175.27,175.2,2.8562]
[1729779388004,2.8558,175.23,175.2,2.8562]
[1729779389698,21.95096527,175.25,175.18,4.64]
[1729779389902,21.95096527,175.25,175.1,404.66]
[1729779389903,21.95096527,175.25,175.15,5.78207]
[1729779390096,21.95096527,175.25,175.15,4.64]
[1729779390702,21.95096527,175.25,175.15,5.78207]
[1729779391402,2.8562,175.21,175.15,5.78207]
[1729779391608,21.95096527,175.25,175.15,5.78207]
[1729779391797,4.64,175.27,175.15,5.78207]
[1729779391999,2.8558,175.23,175.19,2.8563]
[1729779392207,4.64,175.27,175.15,5.78207]
[1729779392505,2.8558,175.23,175.15,5.78207]
[1729779392703,21.95096527,175.26,175.15,5.78207]
[1729779393200,2.8558,175.23,175.15,5.78207]
[1729779393799,2.8558,175.23,175.19,2.8563]
[1729779394200,21.95096527,175.26,175.15,5.78207]
[1729779394402,4.64,175.27,175.15,1.14207]
[1729779394403,21.95096527,175.23,175.15,1.14207]
[1729779394602,26.59096527,175.23,175.14,4.64]
[1729779395001,2.856,175.22,175.18,2.8564]
[1729779395804,7.4959,175.23,175.19,2.8563]
[1729779396005,21.95096527,175.27,175.14,4.64]
[1729779396207,2.8556,175.25,175.21,2.856]
[1729779396515,21.95096527,175.27,175.19,4.64]
[1729779396807,2.8555,175.25,175.21,2.856]
[1729779397708,2.8558,175.23,175.19,4.64]
[1729779397909,21.95096527,175.27,175.19,4.64]
[1729779398303,2.8553,175.26,175.19,4.64]
[1729779398504,4.64,175.28,175.19,4.64]
[1729779398807,2.4018,175.29,175.19,4.64]
[1729779399008,2.4018,175.29,175.2,1.1941]
[1729779399404,5.2566,175.29,175.26,2.8552]
[1729779399600,1.1858,175.29,175.23,4.64]
[1729779399908,2.8546,175.31,175.23,4.64]
[1729779400414,2.8546,175.31,175.23,5.73971]
[1729779400708,21.95096527,175.3,175.23,4.64]
[1729779401304,2.855,175.28,175.23,4.64]
[1729779401510,2.855,175.28,175.2,6.93391]
[1729779401712,2.855,175.28,175.22,2.8559]
[1729779401910,7.4943,175.33,175.2,28.88487527]
[1729779402106,26.59096527,175.33,175.2,28.88487527]
[1729779402415,21.95096527,175.3,175.2,6.93391]
[1729779402619,2.8554,175.26,175.2,6.93391]
[1729779402814,21.95096527,175.28,175.21,2.856]
[1729779403006,21.95096527,175.28,175.2,4.64]
[1729779403306,2.8554,175.26,175.19,4.64]
[1729779403512,4.64,175.29,175.19,4.64]
[1729779403816,2.8551,175.28,175.19,4.64]
[1729779404010,2.8551,175.28,175.24,2.8555]
[1729779404215,4.64,175.29,175.19,5.73987]
[1729779404415,2.8556,175.25,175.21,2.856]
[1729779404614,4.64,175.29,175.21,2.856]
[1729779404914,2.8561,175.21,175.17,1.09987]
[1729779405109,21.95096527,175.22,175.15,7.497]
[1729779405416,21.95096527,175.22,175.15,4.64]
[1729779405619,21.95096527,175.22,175.15,7.497]
[1729779405913,2.8563,175.2,175.15,4.64]
[1729779406109,21.95096527,175.22,175.15,4.64]
[1729779406314,2.4911,175.24,175.15,4.64]
[1729779406502,2.4911,175.24,175.15,5.7822]
[1729779407309,2.856,175.22,175.18,2.8565]
[1729779407718,2.856,175.22,175.15,5.7822]
[1729779407916,2.8558,175.23,175.19,2.8563]
[1729779408407,2.8558,175.23,175.15,5.7822]
[1729779408607,2.8558,175.23,175.2,2.8562]
[1729779409409,2.8563,175.2,175.15,4.64]
[1729779409816,2.8566,175.19,175.15,2.857]
[1729779410116,2.4911,175.24,175.15,2.857]
[1729779410511,2.4911,175.24,175.17,2.8567]
[1729779411214,2.8564,175.2,175.16,2.8569]
[1729779411416,2.8564,175.2,175.13,5.71987]
[1729779411911,2.8564,175.2,175.17,2.8567]
[1729779412315,2.856,175.22,175.19,2.8564]
[1729779412511,4.62,175.23,175.13,5.71987]
[1729779412713,2.4911,175.24,175.13,5.71987]
[1729779413710,2.8558,175.23,175.2,2.8562]
[1729779413911,2.4911,175.24,175.17,5.71987]
[1729779414112,2.8564,175.2,175.17,2.8567]
[1729779414312,2.4911,175.24,175.14,4.62]
[1729779414522,2.4911,175.24,175.14,5.76217]
[1729779414720,2.856,175.22,175.17,2.8567]
[1729779414924,2.4911,175.24,175.14,5.76204]
[1729779415112,21.95096527,175.22,175.14,4.62]
[1729779416034,2.8563,175.2,175.17,2.8567]
[1729779416235,26.57096527,175.22,175.11,9.50273]
[1729779416736,2.8566,175.19,175.11,9.50273]
[1729779416937,2.8566,175.19,175.11,9.46037]
[1729779418734,26.57096527,175.22,175.11,9.46037]
[1729779418933,2.8563,175.2,175.11,9.46037]
[1729779419234,26.57096527,175.22,175.11,9.46037]
[1729779419426,21.95096527,175.19,175.05,5.7172]
[1729779419627,21.95096527,175.19,175.06,5.877]
[1729779419823,21.95096527,175.19,175.06,7.01946]
[1729779420129,4.62,175.18,175.06,7.01946]
[1729779420439,2.857,175.16,175.13,2.8573]
[1729779421231,2.8573,175.14,175.11,2.8577]
[1729779421427,2.8573,175.14,175.08,1.09987]
[1729779421631,21.95096527,175.16,175.06,5.877]
[1729779421931,22.07010253,175.36,175.07,21.95096527]
[1729779421932,26.57096527,175.19,175.07,21.95096527]
[1729779422737,26.57096527,175.19,175.07,23.05083527]
[1729779422929,2.8568,175.17,175.07,23.05083527]
[1729779423434,2.8568,175.17,175.13,2.8573]
[1729779423837,28.99996527,175.22,175.1,5.71987]
[1729779424430,21.95096527,175.19,175.1,5.71987]
[1729779424925,2.857,175.16,175.1,4.62]
[1729779425128,21.95096527,175.14,175.07,1.1423]
[1729779425333,21.95096527,175.14,175.05,4.62]
[1729779425634,2.8581,175.09,175.05,2.8586]
[1729779425933,21.95096527,175.11,175.0,4.62]
[1729779426134,2.8584,175.07,174.99,4.62]
[1729779426430,21.95096527,175.08,174.99,5.71996]
[1729779426631,2.8587,175.05,174.96,1.1668]
[1729779426935,21.95096527,175.05,174.96,6.88664]
[1729779427137,2.8592,175.02,174.95,1.14321]
[1729779427439,21.95096527,175.02,174.93,1.1731]
[1729779427627,2.4915,175.04,174.94,4.62]
[1729779427826,2.4915,175.04,174.94,5.71981]
[1729779428028,21.95096527,175.03,174.94,4.62]
[1729779428231,2.8595,175.0,174.94,4.62]
[1729779428431,21.95096527,175.03,174.94,4.62]
[1729779428735,21.95096527,175.03,174.93,2.31654]
[1729779428736,26.57096527,175.03,174.93,2.31654]
[1729779428933,2.8594,175.01,174.96,2.8602]
[1729779430441,61.7,175.18,174.97,4.62]
[1729779430641,21.95096527,175.06,174.97,4.62]
[1729779430847,7.0115,175.12,174.97,4.62]
[1729779430848,21.95096527,175.04,174.97,4.62]
[1729779431031,21.95096527,175.04,174.94,4.62]
[1729779431237,21.95096527,175.04,174.94,5.76344]
[1729779431443,2.8594,175.02,174.97,2.86]
[1729779431748,21.95096527,175.04,174.97,2.86]
[1729779432136,2.8594,175.02,174.97,2.86]
[1729779432537,21.95096527,175.04,174.99,2.8596]
[1729779432847,21.95096527,175.04,174.95,1.14344]
[1729779433643,2.8593,175.02,174.97,2.8599]
[1729779434545,2.4675,175.03,174.93,4.62]
[1729779434836,21.95096527,175.01,174.93,4.62]
[1729779435041,4.62,175.02,174.85,21.95096527]
[1729779435042,21.95096527,174.98,174.85,21.95096527]
[1729779435233,21.95096527,174.98,174.89,4.62]
[1729779435439,26.57096527,174.98,174.89,4.62]
[1729779435635,21.95096527,174.95,174.78,343.0]
[1729779435838,6.9836,174.94,174.79,27.62218018]
[1729779436037,6.9836,174.94,174.8,1.05121491]
[1729779436644,6.9836,174.94,174.79,29.03796527]
[1729779436838,2.8609,174.92,174.87,2.8616]
[1729779437640,2.861,174.91,174.87,2.8616]
[1729779438343,6.9836,174.94,174.79,23.23706527]
[1729779438549,2.3636,174.94,174.86,2.8618]
[1729779438752,2.3636,174.94,174.82,21.95096527]
[1729779439049,2.8602,174.96,174.91,2.8609]
[1729779439352,21.95096527,174.95,174.84,4.7]
[1729779439553,2.8611,174.91,174.87,2.8616]
[1729779439743,2.8611,174.91,174.84,4.7]
[1729779439744,4.7,174.93,174.84,4.7]
[1729779441139,21.95096527,174.95,174.84,4.7]
[1729779441345,4.7,174.94,174.84,4.7]
[1729779441648,4.7,174.97,174.85,21.95096527]
[1729779442248,4.7,174.97,174.85,23.05058527]
[1729779442844,2.8604,174.95,174.91,2.861]
[1729779443045,2.4502,174.99,174.88,4.7]
[1729779443246,4.7,174.98,174.89,1.2782]
[1729779443448,7.5599,174.98,174.94,2.8605]
[1729779443837,7.5599,174.98,174.89,1.2782]
[1729779443838,2.4502,174.99,174.92,1.09962]
[1729779444039,4.7,175.0,174.97,2.86]
[1729779444342,4.7,175.0,174.92,5.79962]
[1729779444343,4.7,175.0,174.92,4.7]
[1729779444548,2.8595,175.0,174.96,2.8601]
[1729779444749,4.7,175.02,174.92,5.79962]
[1729779445048,21.95096527,175.04,174.93,21.95096527]
[1729779445049,4.7,175.04,174.93,21.95096527]
[1729779445348,26.65096527,175.04,174.92,5.79962]
[1729779445554,2.8594,175.01,174.97,2.8599]
[1729779446252,21.95096527,175.01,174.93,4.7]
[1729779446942,4.7,175.04,174.93,4.7]
[1729779447355,4.7,175.04,174.93,26.65096527]
[1729779448042,2.8592,175.03,174.96,2.8601]
[1729779448348,26.65096527,175.04,174.93,4.7]
[1729779448650,2.8593,175.02,174.93,4.7]
[1729779449057,7.2212,175.05,174.93,26.65096527]
[1729779449263,7.2212,175.05,174.99,2.8596]
[1729779449264,2.859,175.04,174.99,2.8596]
[1729779450155,2.8597,174.99,174.95,2.8603]